Cogmind - Beta 13 @@@ ROGUE MODE // 2024.03.31 @ 12:46:55 Player: Delta-Psyco Result: Destroyed by G-34 Mercenary via exploding Nuclear Reactor Performance ------------- Evolutions (0) 0 Regions Visited (1) 200 Robots Destroyed (13) 65 Value Destroyed (329) 329 Prototype IDs (0) 0 Alien Tech Used (0) 0 Bonus (0) 0 TOTAL SCORE: 594 Bonus ------- None Cogmind --------- Core Integrity 0/250 Matter 259/300 Energy 100/100 System Corruption 0% Temperature Cool (0) Movement Core (1400) Ox27 Location -10/Materials Parts ------- > --- POWER (1) -------- (None) > --- PROPULSION (2) --- (None) > --- UTILITY (2) ------ Huge Storage Unit Terrain Scan Processor > --- WEAPON (2) ------- Hammer > --- INVENTORY (25) --- Heat Sink Heat Sink Medium Battery (150) Medium Battery (150) Medium Battery (150) Medium Battery (150) Medium Battery (150) Medium Battery (150) Small Matter Pod (0) Signal Interpreter Terrain Scanner Seismic Detector Targeting Computer ECM Suite ECM Suite Power Shielding Peak State ------------ > --- POWER ------------ Light Ion Engine > --- PROPULSION ------- Wheel Wheel > --- UTILITY ---------- Huge Storage Unit Terrain Scan Processor > --- WEAPON ----------- Assault Rifle Assault Rifle > --- INVENTORY -------- Heat Sink Grenade Launcher [Rating: 8] Favorites ----------- Power Light Ion Engine Engine Light Ion Engine Propulsion Wheel Leg Aluminum Leg Wheel Wheel Utility Terrain Scan Processor Storage Huge Storage Unit Processor Terrain Scan Processor Weapon Assault Rifle Energy Gun EM Pulse Gun Ballistic Gun Assault Rifle Launcher Grenade Launcher Impact Weapon Hammer Build | -11 -10 ------- Run | Yrd Mat Slots Evolved . | . . Power . | . . Propulsion . | . . Utility . | . . Weapon . | . . Parts Attached 16 | 6 10 Power 2 | 1 1 Engine 2 | 1 1 Core . | . . Reactor . | . . Propulsion 5 | 2 3 Treads . | . . Leg 1 | . 1 Wheel 4 | 2 2 Hover . | . . Flight . | . . Utility 2 | . 2 Device . | . . Storage 1 | . 1 Processor 1 | . 1 Hackware . | . . Protection . | . . Artifact . | . . Weapon 7 | 3 4 Energy Gun 1 | 1 . Energy Cannon . | . . Ballistic Gun 4 | 2 2 Ballistic Cannon . | . . Launcher 1 | . 1 Special Weapon . | . . Impact Weapon 1 | . 1 Slashing Weapon . | . . Piercing Weapon . | . . Special Melee Weapon . | . . Unidentified Prototypes . | . . Parts Lost 7 | . 7 Power 1 | . 1 Propulsion 3 | . 3 Utility . | . . Weapon 3 | . 3 Highest Loss Streak 3 | . 3 To Critical Strikes . | . . Average Slot Usage (%) 73 | . 73 Engine 6 | . 6 Leg 6 | . 6 Wheel 9 | . 9 Storage 11 | . 11 Processor 12 | . 12 Energy Gun 1 | . 1 Ballistic Gun 16 | . 16 Launcher 7 | . 7 Naked Turns . | . . Heaviest Build 87 | 7 87 Greatest Support 20 | 20 20 Greatest Overweight (x) 28 | . 28 Average Overweight (x) 3 | . 4 Largest Inventory Capacity 25 | 5 25 Average Capacity 19 | 5 21 Most Carried 17 | 2 17 Average Carried 9 | . 10 Final Capacity 25 | 5 25 Final Carried 16 | 2 16 Class Distribution -------------------- 88% | Mutant 11% | Scavenger-Mutant Dominant Class ---------------- Mutant | -10/Materials Resources | -11 -10 ----------- Run | Yrd Mat Matter Collected 443 | 241 202 Remotely . | . . Salvage Created 387 | 35 352 Parts 20 | 1 19 Haulers Intercepted . | . . Recyclers Shooed 1 | . 1 Parts Field Recycled . | . . Retrieved Matter . | . . Parts Self-Destructed . | . . Prevented . | . . Kills | -11 -10 ------- Run | Yrd Mat Combat Hostiles Destroyed 10 | 1 9 Guns 6 | 1 5 AOE 4 | . 4 Classes Destroyed 4 | 1 3 Worker 1 | . 1 Builder 2 | . 2 Swarmer 2 | . 2 Grunt 8 | 1 7 Best Kill Streak 4 | 1 4 Combat Bots Only 3 | 1 3 Max Kills in Single Turn 2 | 1 2 Gunslinging . | . . Exploded 2 | . 2 Melee . | . . Uniques/NPCs Destroyed . | . . Combat | -11 -10 -------- Run | Yrd Mat Hostile Shots Fired 100 | 7 93 Missed 22 | 4 18 Damage Taken 938 | 34 904 Core 344 | . 344 Absorbed by Shields . | . . Core Remaining (%) 100 | 100 . Volleys Fired 40 | 5 35 Largest 2 | 2 2 Hottest 50 | 40 50 Shots Fired 62 | 10 52 Gun 59 | 10 49 Cannon . | . . Launcher 3 | . 3 Special . | . . Kinetic 43 | 10 33 Thermal . | . . Explosive 3 | . 3 Electromagnetic 16 | . 16 Robot Hit Streak 10 | 7 10 Robot Miss Streak 4 | 1 4 Penetration Max . | . . Secondary Targets . | . . Shots Hit Robots 46 | 8 38 Core Hits 23 | 2 21 Critical Kills . | . . Critical Parts Destroyed 1 | . 1 Critical Strikes 2 | . 2 Corrupt 1 | . 1 Smash 1 | . 1 Melee Attacks 3 | . 3 Impact 3 | . 3 Slashing . | . . Piercing . | . . Sneak Attacks . | . . Combat Hostiles . | . . Follow-up Attacks . | . . Damage Inflicted 962 | 109 853 Guns 562 | 109 453 Cannons . | . . Explosions 331 | . 331 Melee 69 | . 69 Ramming . | . . Kinetic 380 | 109 271 Thermal 60 | . 60 Explosive 271 | . 271 Electromagnetic 182 | . 182 Impact 69 | . 69 Slashing . | . . Piercing . | . . Highest Corruption . | . . Average Corruption . | . . Corruption Purged . | . . Corruption Blocked . | . . Overload Shots . | . . Overflow Damage 45 | . 45 Projectiles . | . . Explosions 10 | . 10 Melee 35 | . 35 Knockbacks . | . . Impact . | . . Kinetic . | . . Secondary . | . . Self-Inflicted Damage 15 | . 15 Shots 1 | . 1 Rammed . | . . Targets Rammed . | . . Kicked . | . . Crushed . | . . Highest Temperature 76 | . 76 Average Temperature 48 | . 48 Received Heat Transfer 372 | 18 354 Siege Activations . | . . Robots Corrupted . | . . Combat Hostiles . | . . Parts Fried . | . . Impact Corruptions 1 | . 1 Robots Melted . | . . Combat Hostiles . | . . Parts Melted . | . . Heat Transferred 50 | . 50 Parts Sabotaged . | . . Parts Stolen . | . . Parts Stripped . | . . Power Chain Reactions 1 | . 1 Alert | -11 -10 ------- Run | Yrd Mat Peak Influence 145 | 20 145 Initial 13 | . 13 Average 57 | 9 63 Maximum Alert Level . | . . Low Security (%) 100 | 100 100 Level 1 . | . . Level 2 . | . . Level 3 . | . . Level 4 . | . . Level 5 . | . . High Security . | . . Max Security . | . . Squads Dispatched 2 | . 2 Investigation 2 | . 2 Extermination . | . . Reinforcement . | . . Assault . | . . Garrison . | . . Intercept . | . . Searches Triggered . | . . Construction Impeded . | . . Haulers Reinforced . | . . Active Scanning Responses . | . . Cargo Convoy Interrupts . | . . Stealth | -11 -10 --------- Run | Yrd Mat Distress Signals . | . . Communications Jammed . | . . Distress Signals . | . . Times Spotted 19 | 1 18 Peak Tracking Total 4 | 1 4 Tactical Retreats . | . . Traps | -11 -10 ------- Run | Yrd Mat Traps Triggered 3 | . 3 Indirectly . | . . Trap Hack Attempts . | . . Triggered . | . . Disarmed . | . . Reprogrammed . | . . Reused . | . . Traps Extracted . | . . Installed . | . . Triggered . | . . Machines | -11 -10 ---------- Run | Yrd Mat Machines Disabled . | . . Max in Single Turn . | . . Machines Repaired . | . . Machines Dismantled . | . . Machines Sabotaged . | . . Overloaded Fab Kills . | . . Hacking | -11 -10 --------- Run | Yrd Mat Machines Accessed 3 | . 3 Terminals 3 | . 3 Fabricators . | . . Repair Stations . | . . Recycling Units . | . . Scanalyzers . | . . Garrison Access . | . . Total Hacks 3 | . 3 Successful 2 | . 2 Failed 1 | . 1 Catastrophic . | . . Database Lockouts . | . . Manual . | . . Terminals 3 | . 3 Fabricators . | . . Repair Stations . | . . Recycling Units . | . . Scanalyzers . | . . Garrison Access . | . . Terminal Hacks 2 | . 2 Alert Level 2 | . 2 Fabricator Hacks . | . . Repair Station Hacks . | . . Recycling Unit Hacks . | . . Scanalyzer . | . . Garrison Access Hacks . | . . Unauthorized Hacks . | . . Terminals . | . . Fabricators . | . . Repair Stations . | . . Recycling Units . | . . Scanalyzers . | . . Garrison Access . | . . Data Cores Recovered . | . . Used . | . . Hacking Detections . | . . Full Trace Events . | . . Feedback Events . | . . Feedback Blocked . | . . Robot Schematics Acquired . | . . Robots Built . | . . Authchips . | . . Time . | . . Total Robot Build Rating . | . . Part Schematics Acquired . | . . Parts Built . | . . Authchips . | . . Time . | . . Total Part Build Rating . | . . Parts Repaired . | . . Time . | . . Parts Recycled . | . . Recycled Matter . | . . Retrieved Matter . | . . Retrieved Components . | . . Parts Scanalyzed . | . . Part Schematics Acquired . | . . Parts Damaged . | . . Bothacking | -11 -10 ------------ Run | Yrd Mat Used RIF Installer . | . . Robots Hacked . | . . Non-combat . | . . Combat . | . . Robot Hacks Applied . | . . Relay Couplers Released . | . . Fabnet Peak Effective % . | . . Robots Rewired . | . . Allies Hacked . | . . Hacks Repelled . | . . Allies | -11 -10 -------- Run | Yrd Mat Total Allies . | . . Largest Group . | . . Highest-Rated Group . | . . Highest-Rated Ally . | . . Total Orders . | . . Ally Attacks . | . . Total Damage . | . . Kills . | . . Allies Corrupted . | . . Allies Melted . | . . Intel | -11 -10 ------- Run | Yrd Mat Robot Analysis Total . | . . Derelict Logs Recovered . | . . Drone Launches . | . . Drone Recoveries . | . . Exploration | -11 -10 ------------- Run | Yrd Mat Turns Passed 1167 | 118 1049 Spaces Moved 493 | 115 378 Core 24 | 19 5 Treads . | . . Legs 68 | . 68 Wheels 401 | 96 305 Hover . | . . Flight . | . . Fastest Speed 50 | 50 80 Average Speed 203 | 75 242 Slowest Speed 1450 | 80 1450 Overloaded Moves . | . . Propulsion Burnouts . | . . Robots Hopped . | . . Cave-ins Triggered . | . . Exploration Rate (%) 39 | 7 71 Regions Visited 1 Branch Regions . Pre-discovered Areas . | . . Known Exits Taken . | . . Unknown Exits Taken 1 | 1 . Scrap Searched . | . . Spaces Dug . | . . Terrain Destroyed 20 | . 20 Melee . | . . Projectile . | . . AOE 20 | . 20 Terrain Rammed . | . . Walls Destroyed . | . . Machines Disabled . | . . Actions | -11 -10 --------- Run | Yrd Mat Total 592 | 135 457 Wait 5 | 3 2 Move 492 | 114 378 Hop . | . . Pick Up 31 | 7 24 Fast Attach . | . . Attach 12 | 5 7 Detach 1 | . 1 Swap 4 | 1 3 Drop 4 | . 4 Fire 40 | 5 35 Melee 3 | . 3 Ram . | . . Kick . | . . Crush . | . . Escape Stasis . | . . Rewire . | . . Trap . | . . Miscellaneous . | . . Route ------- -11/Scrapyard -10/Materials (discovered 4 exits: [*Mat x2] / [*Min x2]) History --------- Turn | Location | Event 2 | -11/Scrapyard | Met Revision 17 47 | -11/Scrapyard | Discovered new exit (range 8) 119 | -11/Scrapyard | Entered Materials 178 | -10/Materials | Discovered new exit (range 7) 302 | -10/Materials | Discovered new exit (range 16) 559 | -10/Materials | Discovered new exit (range 7) 635 | -10/Materials | Lost 3 parts (1p1n1w) 683 | -10/Materials | Build established: Mutant 720 | -10/Materials | Core integrity fell below 50% 1024 | -10/Materials | Discovered new exit (range 16) 1166 | -10/Materials | Core integrity fell below 20% 1168 | -10/Materials | Destroyed by G-34 Mercenary via exploding Nuclear Reactor Last Messages --------------- EXIT=FOUND Acquired Terrain Scanner. Connecting with Terminal... >>Alert(Check) Current Alert Level: Low Security Triggered Alarm Trap. An alarm sounds. ALERT: Alarm triggered, dispatching investigation squad. Assault Rifle destroyed. U-05 Engineer lays Concrete. Grenade Launcher destroyed. U-05 Engineer lays Concrete. G-34 Mercenary suffers critical hit (Smash). Destroyed Sml. Laser. G-34 Mercenary system corrupted by crushing effect. Nuclear Reactor explodes. Aluminum Leg destroyed. [Achievement: First Step to Greatness] Map ----- +----------------------------------------------------+ | ??????#""" ### # #???# | | ??????#"R ## ####### | | ??????#""" / #? % | | ??????# "" #? % | | ??????# #### | | ??????#####+####? | | ????????# ###### | | ????????# % | | ????????# %% | | ????????# | | ????????# """ ### | | ????????# !! """ ### | | ????????# !! ! """ +?? | | ????????# !!! #?? | | ????????# !! #?? | | ????????# ########## #?? | | ########## ##????????# #?? | | # #?# #?????????+ #?? | | # """ #?# #?????????# #?? | | # """ #?# #?????????# #?? | | # """ ### #????????? #?? | | # # #????????? ?? | | # # #????????? ?? | | # u + T #???????? ? | | # # #???????? ##? | | # g @g# #????????###/##?? | | # """ ## ##??????????? ???? | | # """ ## #???????????? ???? | | # """ ## #???????????? ???? | | # ## #????????????????? | | ######### #????????????????? | | ????????# < #????????????????? | | ????????# #????????????????? | | ????????#####????????????????? | | ?????????????????????????????? | | ?????????????????????????????? | | ?????????????????????????????? | | ?????????????????????????????? | | ?????????????????????????????? | | ?????????????????????????????? | | ?????????????????????????????? | | ?????????????????????????????? | | ?????????????????????????????? | | ?????????????????????????????? | | ?????????????????????????????? | | | | | | | | | | | +----------------------------------------------------+ Best States ------------- Heat Dissipation 25 Energy Generation 10 Energy Capacity 125 Matter Stores 300 Matter Capacity 300 Sight Range 16 Terrain Scan Density 85 Evasion (%) 50 Item Schematics ----------------- None Robot Schematics ------------------ None Fabricated ------------ Nothing Alien Tech Used ----------------- None Achievements -------------- First Step to Greatness Challenges ------------ None Game ------ Seed CoordinationTimingRay Manual? 0 Play Time 00:17:23 Cumulative 2.3 hours Start 2024.03.31 @ 12:30:10 End 2024.03.31 @ 12:46:55 Sessions 1 Manual Loads 0 Difficulty Rogue Special Mode None Game No. 2 Rogue 2 Adventurer 0 Explorer 0 Win Type - Total 0 Types 0/0/0/0/0/0/0/0/0 Lore% 0 Gallery% 3 Achievement% 3 Wizard Run 0 Options --------- Layout 1 ASCII 0 Keyboard 0 Movement Numpad Keybinds 0 Fullscreen 1 Font 24/Smallcaps Map View 50x35 Zoom Use 0% Tactical HUD 0 Map Filters NONE Filters NONE Steam 1 RUN: be3b735a-9c18-471a-95a0-aaf6b78a3fe8